bitfinex-derivatives/quotes_ETHF0:USTF0_20260115
["timestamp","ask_amount","ask_price","bid_price","bid_amount"]
[1768516554026,0.15105,3310.8,3309.8,1.21658924]
[1768516554226,0.00783221,3311.0,3309.8,1.21658924]
[1768516558822,0.00783221,3311.0,3309.8,2.46076356]
[1768516559024,0.00783221,3311.0,3310.4,1.21658924]
[1768516559530,0.00783221,3311.0,3310.2,3.6773528]
[1768516560632,0.00783221,3311.0,3310.2,2.46076356]
[1768516560823,0.00783221,3311.0,3310.2,3.6773528]
[1768516561017,0.00783221,3311.0,3310.2,2.46076356]
[1768516568533,0.00783221,3311.0,3309.9,5.0046951]
[1768516569223,0.00783221,3311.0,3309.9,7.46545866]
[1768516569431,0.00783221,3311.0,3310.0,2.46076356]
[1768516575724,0.00783221,3311.0,3309.9,5.0046951]
[1768516579242,0.00783221,3311.0,3310.0,3.78810586]
[1768516582449,1.36761924,3311.3,3310.0,3.78810586]
[1768516583352,1.37023161,3311.3,3310.1,3.78810586]
[1768516585356,0.15364237,3311.3,3310.1,3.78810586]
[1768516588261,0.15364237,3311.3,3310.2,3.78810586]
[1768516592268,0.15364237,3311.3,3310.1,3.78810586]
[1768516592566,0.15364237,3311.3,3310.2,2.68686951]
[1768516592755,0.15364237,3311.3,3310.2,6.47497537]
[1768516593665,0.15364237,3311.3,3310.3,2.68686951]
[1768516596765,0.15364237,3311.3,3310.3,6.47497537]
[1768516597473,0.15364237,3311.3,3310.3,2.68686951]
[1768516599470,0.15364237,3311.3,3310.2,3.78810586]
[1768516599670,0.15364237,3311.3,3310.1,3.78810586]
[1768516603177,0.15102,3311.2,3310.1,3.78810586]
[1768516603473,2.64172664,3311.2,3310.1,3.78810586]
[1768516603672,2.64172664,3311.2,3309.7,2.68686951]
[1768516604674,0.15104,3311.1,3309.7,2.68686951]
[1768516605273,0.15105,3311.0,3309.5,3.78810586]
[1768516605478,0.15105,3311.0,3309.6,2.68686951]
[1768516608875,0.15105,3310.9,3309.6,2.68686951]
[1768516610080,0.15106,3310.6,3309.2,2.68686951]
[1768516611580,2.81688799,3310.5,3309.0,0.00278538]
[1768516611780,2.66581799,3310.5,3309.0,0.00278538]
[1768516612778,0.15109,3310.0,3309.0,0.00278538]
[1768516614276,0.1511,3309.9,3308.5,3.19089124]
[1768516614471,2.81691799,3309.9,3308.4,2.78301924]
[1768516615273,2.81691799,3309.9,3308.4,2.78686671]
[1768516616179,0.1511,3309.8,3308.4,2.78686671]
[1768516616478,2.81691799,3309.8,3308.4,2.78686671]
[1768516616881,0.1511,3309.7,3308.4,2.78686671]
[1768516617081,0.1511,3309.7,3308.4,0.00384747]
[1768516618374,0.15111,3309.6,3308.4,0.00384747]
[1768516625584,2.81692799,3309.6,3308.4,0.00384747]
[1768516632782,0.15108,3310.3,3308.6,2.78301924]
[1768516632982,0.15108,3310.3,3308.7,1.21713824]
[1768516633175,0.15108,3310.3,3308.8,2.78301924]
[1768516637885,0.15105,3310.8,3308.8,2.78301924]
[1768516638095,0.15105,3310.8,3308.9,2.78301924]
[1768516639399,0.15105,3310.8,3309.0,2.78301924]
[1768516641186,0.15105,3310.8,3309.2,2.8362873]
[1768516643587,0.15105,3310.8,3309.3,2.8362873]
[1768516645500,0.15105,3310.8,3309.9,2.8362873]
[1768516651427,1.21978708,3311.3,3309.9,2.8362873]
[1768516651930,1.37081708,3311.3,3309.9,2.8362873]
[1768516652334,0.15104,3311.2,3309.9,2.8362873]
[1768516652731,0.15104,3311.1,3309.9,2.8362873]
[1768516652936,1.36822471,3311.0,3309.5,2.9328157]
[1768516653230,1.36822471,3311.0,3309.5,4.14999041]
[1768516654728,1.21717471,3310.7,3309.5,2.9328157]
[1768516655323,1.21717471,3310.7,3309.3,3.77560886]
[1768516655524,1.36823471,3310.7,3309.2,3.77560886]
[1768516656022,1.36823471,3310.7,3309.2,6.70842456]
[1768516660940,1.36823471,3310.7,3309.3,3.77560886]
[1768516661630,0.15106,3310.7,3309.3,3.77560886]
[1768516661934,1.21717471,3310.6,3309.3,3.77560886]
[1768516662536,1.21717471,3310.6,3309.4,3.77560886]
[1768516665533,0.15106,3310.7,3309.4,6.70842456]
[1768516666442,0.15106,3310.7,3309.5,3.77560886]
[1768516666639,0.15106,3310.7,3309.5,6.70842456]
[1768516668641,0.15106,3310.7,3309.6,2.9328157]
[1768516668835,0.15364237,3311.3,3309.8,2.9328157]
[1768516669036,1.37081708,3311.3,3309.8,2.9328157]
[1768516669535,1.21717471,3311.0,3309.8,2.9328157]
[1768516670945,0.61717471,3311.0,3309.8,2.9328157]
[1768516672744,1.21717471,3311.1,3309.8,2.9328157]
[1768516678044,1.36821471,3311.1,3309.8,2.9328157]
[1768516680347,0.15104,3311.1,3309.8,2.9328157]
[1768516680652,8.71621557,3314.4,3310.4,6.71206042]
[1768516680653,0.15102,3311.5,3310.4,6.71206042]
[1768516680844,0.151,3312.1,3310.5,2.93645156]
[1768516681042,0.151,3312.1,3310.8,2.93645156]
[1768516681241,1.36817471,3312.1,3310.8,2.93645156]
[1768516681647,1.37085095,3312.1,3310.8,2.93921752]
[1768516682352,0.15367624,3312.1,3310.8,2.93921752]
[1768516690852,1.21717471,3312.7,3311.3,1.21717471]
[1768516691152,0.15097,3312.6,3311.3,1.21717471]
[1768516691544,0.15097,3312.6,3311.3,4.15362627]
[1768516691951,0.15470342,3312.6,3311.4,2.93645156]
[1768516693255,1.21717471,3312.3,3311.0,2.93645156]
[1768516693457,1.36816471,3312.3,3311.0,2.93645156]
[1768516696656,1.21717471,3312.0,3310.8,0.00276596]
[1768516699261,1.21717471,3311.7,3310.8,0.00276596]
[1768516699759,1.21717471,3311.9,3310.8,0.00276596]
[1768516700659,0.15101,3311.7,3310.8,0.00276596]
[1768516711566,0.15099,3312.3,3310.8,4.04381244]
[1768516711756,0.15099,3312.3,3311.1,2.82436858]
[1768516712873,0.00373342,3312.6,3311.1,2.82436858]
[1768516713063,0.00373342,3312.6,3311.3,6.59997744]
[1768516713258,0.00373342,3312.6,3311.4,2.82436858]
[1768516730690,2.81780392,3313.3,3311.4,2.82436858]
[1768516731495,2.8217252,3313.3,3311.4,2.82436858]
[1768516731685,0.15096,3312.9,3311.4,2.82436858]
[1768516737797,2.98350088,3312.9,3311.4,2.82436858]
[1768516738092,0.15096,3312.8,3311.4,2.82436858]
[1768516739297,0.15096,3312.8,3311.4,6.59997744]
[1768516741499,0.15096,3312.8,3311.5,3.77560886]
[1768516742502,0.15096,3312.8,3311.5,6.87203214]
[1768516742692,0.15096,3312.8,3311.6,3.77560886]
[1768516746095,0.00392128,3313.3,3311.7,3.09642328]
[1768516746294,0.00392128,3313.3,3311.7,6.87203214]
[1768516746495,0.00392128,3313.3,3311.8,3.09642328]
[1768516747600,0.15096,3312.8,3311.8,3.09642328]
[1768516749591,0.00392128,3313.3,3311.8,3.09642328]
[1768516750698,0.00392128,3313.3,3311.9,3.09642328]
[1768516750898,0.00392128,3313.3,3312.2,3.10095035]
[1768516752301,0.15486128,3313.3,3312.2,3.10095035]
[1768516757404,0.15486128,3313.3,3312.3,3.09642328]
[1768516761098,3.13676765,3314.5,3312.3,3.09642328]
[1768516761302,3.13676765,3314.5,3312.9,3.05245616]
[1768516761498,3.28765765,3314.5,3312.9,3.05245616]
[1768516761706,0.15089,3314.5,3312.9,3.05245616]
[1768516762306,0.15089,3314.4,3312.9,3.05245616]
[1768516769318,0.15089,3314.4,3313.1,4.20019648]
[1768516772418,0.15089,3314.4,3313.2,2.98543362]
[1768516772719,0.15089,3314.4,3313.2,2.9880586]
[1768516777021,0.024981,3682.4,3313.2,2.9880586]
[1768516777022,4.16752749,3314.7,3313.2,2.9880586]
[1768516777221,0.15089,3314.5,3313.2,2.9880586]
[1768516777621,0.15089,3314.4,3313.2,2.9880586]
[1768516777822,0.15089,3314.4,3313.2,0.00262498]
[1768516778024,0.1539063,3314.4,3313.2,0.00262498]
[1768516780323,0.0030163,3314.4,3313.9,1.21476286]
[1768516780521,0.15086,3315.0,3313.9,1.21476286]
[1768516781420,0.15315635,3315.0,3313.9,1.21476286]
[1768516782220,0.15315635,3315.0,3313.7,2.98543362]
[1768516782421,0.15315635,3315.0,3313.9,1.21476286]
[1768516782826,0.15315635,3315.0,3314.2,1.21476286]
[1768516783328,0.15315635,3315.0,3313.9,4.20019648]
[1768516783916,2.95276463,3316.4,3314.6,2.98543362]
[1768516784228,1.21476286,3316.0,3314.6,2.98543362]
[1768516784621,1.21476286,3316.0,3314.6,4.20019648]
[1768516784822,0.00231747,3316.0,3314.7,2.98543362]
[1768516785126,0.00231747,3316.0,3314.9,1.21476286]
[1768516786731,0.00231747,3316.0,3315.1,0.00452707]
[1768516788722,0.00231747,3316.0,3315.1,1.21928993]
[1768516788920,0.00231747,3316.0,3315.2,1.21476286]
[1768516789418,0.15077,3317.0,3315.5,4.20019648]
[1768516789624,0.15077,3317.0,3315.6,2.98543362]
[1768516790128,4.16752749,3316.9,3315.2,4.20019648]
[1768516790634,4.17023905,3316.9,3315.6,1.21476286]
[1768516790930,2.95547619,3316.9,3315.6,1.21476286]
[1768516793538,3.025,3319.9,3316.1,2.87232778]
[1768516793734,0.15069,3318.9,3317.8,1.21476286]
[1768516793935,1.36545286,3318.9,3317.2,2.87232778]
[1768516794235,1.36545286,3318.9,3317.0,1.21476286]
[1768516794236,1.36542286,3319.6,3318.0,1.21476286]
[1768516794443,1.36542286,3319.6,3317.8,2.87232778]
[1768516794631,1.21476286,3319.3,3317.8,2.87454278]
[1768516794933,0.15066,3319.5,3317.8,0.002215]
[1768516795330,1.21476286,3319.0,3317.8,0.002215]
[1768516795529,1.21476286,3318.7,3317.8,0.002215]
[1768516795725,3.16337187,3319.0,3316.6,2.87232778]
[1768516795726,1.21476286,3318.1,3316.6,2.87232778]
[1768516796336,1.21476286,3317.8,3316.6,2.87232778]
[1768516796841,1.21476286,3318.0,3316.6,2.87561957]
[1768516798031,1.21476286,3317.7,3316.6,2.87561957]
[1768516798238,1.21476286,3317.4,3316.6,0.00329179]
[1768516798538,1.21476286,3317.1,3316.1,2.87232778]
[1768516798744,1.21476286,3317.1,3315.8,1.21476286]
[1768516799134,0.15074,3317.7,3315.7,2.87232778]
[1768516799339,0.15353458,3317.7,3315.8,2.87232778]
[1768516799736,0.15074,3317.6,3315.8,2.87232778]
[1768516802160,0.00279458,3317.7,3316.0,2.87232778]
[1768516802461,0.15071,3318.3,3316.0,2.87232778]
[1768516802864,0.15071,3318.3,3316.2,2.87232778]
[1768516803060,0.15068,3319.0,3316.5,2.87232778]
[1768516803362,0.15409238,3319.0,3316.5,2.87232778]
[1768516803552,0.15069,3318.9,3316.5,2.87232778]
[1768516804653,0.15069,3318.8,3316.5,2.87232778]
[1768516804854,0.15069,3318.8,3316.7,2.87232778]
[1768516806363,0.15069,3318.8,3316.7,3.02310778]
[1768516807159,0.00341238,3319.0,3317.0,2.87232778]
[1768516807564,0.00341238,3319.0,3317.2,2.87232778]
[1768516808659,0.00341238,3319.0,3317.4,2.87232778]
[1768516808866,0.00341238,3319.0,3317.6,2.87232778]
[1768516810473,0.00341238,3319.0,3317.8,2.87232778]
[1768516811862,0.1507,3318.5,3316.9,2.87232778]
[1768516815174,3.16678425,3319.0,3316.9,2.87232778]
[1768516815175,0.15071,3318.4,3316.9,2.87232778]
[1768516815762,0.00341238,3319.0,3316.9,3.02309778]
[1768516816167,0.00341238,3319.0,3317.0,0.15077]
[1768516816168,0.15409238,3319.0,3317.0,0.15077]
[1768516816363,0.15409238,3319.0,3317.1,2.87232778]
[1768516819274,0.15409238,3319.0,3317.1,3.02309778]
[1768516820372,0.00341238,3319.0,3317.3,2.87232778]
[1768516820961,0.15065,3319.7,3317.3,2.87232778]
[1768516821973,0.15420648,3319.7,3317.3,2.87232778]
[1768516822674,0.15420648,3319.7,3317.5,3.39564787]
[1768516823475,0.15420648,3319.7,3317.8,3.39564787]
[1768516823775,0.15420648,3319.7,3318.0,3.39564787]
[1768516826577,0.15420648,3319.7,3318.2,3.33293054]
[1768516826772,0.15420648,3319.7,3318.2,6.35123969]
[1768516827374,0.15420648,3319.7,3318.3,1.21099976]
[1768516827576,0.15420648,3319.7,3318.3,4.5439303]
[1768516828382,0.15420648,3319.7,3318.2,0.00330915]
[1768516828383,1.21099976,3319.2,3318.2,0.00330915]
[1768516828875,0.15068,3319.1,3318.2,0.00330915]
[1768516829582,6.15068,3319.1,3318.2,0.00330915]
[1768516830681,6.15068,3319.1,3317.2,3.33293054]
[1768516830981,0.15068,3319.1,3317.2,3.33293054]
[1768516831781,0.15068,3319.1,3317.2,3.33511268]
[1768516835875,0.15068,3319.0,3317.2,3.33511268]
[1768516838680,3.13830995,3318.9,3316.5,3.33293054]
[1768516838881,0.15073,3318.0,3316.5,3.33293054]
[1768516839479,0.15073,3317.9,3316.5,3.33293054]
[1768516839680,0.15073,3317.9,3316.5,3.33621153]
[1768516841990,0.15073,3317.9,3316.5,0.00328099]
[1768516842288,3.13830995,3319.4,3316.6,3.33293054]
[1768516842490,3.14186643,3319.7,3316.8,3.33293054]
[1768516842789,13.2611531,3319.6,3316.8,3.33293054]
[1768516843088,12.4,3319.6,3316.8,3.33293054]
[1768516843591,0.15067,3319.2,3316.8,3.33293054]
[1768516846391,0.15067,3319.2,3317.0,3.33293054]
[1768516847386,15.53830995,3319.6,3317.0,3.33293054]
[1768516847583,0.15068,3319.1,3317.0,3.33293054]
[1768516847990,0.15068,3319.1,3317.0,6.34793054]
[1768516848489,0.15068,3319.1,3317.1,3.33293054]
[1768516848691,0.15066,3319.6,3317.1,3.33293054]
[1768516849792,0.15066,3319.6,3317.4,3.33293054]
[1768516850496,0.15066,3319.6,3317.6,3.48367054]
[1768516852992,0.15066,3319.5,3317.6,3.33293054]
[1768516854688,0.00355648,3319.7,3317.6,3.33293054]
[1768516854689,0.00355648,3319.7,3317.6,3.48367054]
[1768516856005,0.00355648,3319.7,3317.8,3.53242121]
[1768516867713,0.00355648,3319.7,3318.0,3.53242121]
[1768516868111,0.00355648,3319.7,3318.0,6.54642121]
[1768516868312,0.00355648,3319.7,3318.1,3.53242121]
[1768516875016,0.00355648,3319.7,3318.3,3.53242121]
[1768516876723,0.1506,3320.8,3318.4,3.53242121]
[1768516877630,0.15283411,3320.8,3318.4,3.53242121]
[1768516878714,0.15283411,3320.8,3318.6,3.53242121]
[1768516879727,0.15283411,3320.8,3318.8,3.53242121]
[1768516880415,0.15283411,3320.8,3319.0,3.53242121]
[1768516880621,0.15283411,3320.8,3319.0,3.53512323]
[1768516881021,0.00223411,3320.8,3319.0,3.53512323]
[1768516882728,0.00223411,3320.8,3319.2,3.4664344]
[1768516884529,0.15057,3321.4,3319.2,3.4664344]
[1768516884530,3.37367572,3322.4,3319.2,3.4664344]
[1768516884734,3.37367572,3321.9,3319.4,3.4664344]
[1768516884933,3.52424572,3321.4,3319.4,3.4664344]
[1768516885635,15.92714773,3321.4,3319.4,3.4664344]
[1768516886127,12.55347201,3321.4,3319.4,3.4664344]
[1768516888934,3.31431284,3321.3,3319.4,3.4664344]
[1768516891041,2.71431284,3321.3,3319.4,3.4664344]
[1768516891433,1.21026701,3320.8,3319.4,3.4664344]
[1768516892229,2.86489284,3321.3,3319.4,3.4664344]
[1768516892430,1.21026701,3320.7,3319.4,3.4664344]
[1768516899833,0.15059,3321.0,3319.4,3.4664344]
[1768516899834,1.21026701,3320.4,3319.4,3.4664344]
[1768516900039,1.21026701,3320.1,3319.0,3.44448352]
[1768516900429,0.15061,3320.7,3319.0,3.44448352]
[1768516900834,1.21026701,3320.4,3319.0,3.44448352]
[1768516902439,1.21026701,3320.3,3319.0,3.44448352]
[1768516904844,0.15061,3320.7,3319.0,3.44448352]
[1768516905039,1.21026701,3320.2,3319.0,3.44448352]
[1768516905744,0.15061,3320.7,3319.0,3.44448352]
[1768516906049,1.21026701,3320.3,3319.0,3.44448352]
[1768516906450,0.15061,3320.7,3319.0,3.44448352]
[1768516906946,1.21026701,3320.5,3319.0,3.44448352]
[1768516907142,0.15061,3320.7,3319.0,3.44448352]
[1768516907347,1.21026701,3320.6,3319.2,3.4417815]
[1768516907550,0.15061,3320.7,3319.2,3.4417815]
[1768516907752,1.21026701,3320.6,3319.2,3.4417815]
[1768516907946,0.15061,3320.7,3319.2,3.4417815]
[1768516908343,1.21026701,3320.6,3319.2,3.4417815]
[1768516915152,0.15069,3318.9,3317.1,3.54544042]
[1768516915343,1.21026701,3318.4,3317.1,3.54544042]
[1768516916049,1.21026701,3318.1,3317.1,3.54784383]
[1768516916652,1.21026701,3317.5,3316.7,2.94544042]
[1768516917450,0.15071,3318.3,3316.7,2.94544042]
[1768516917657,0.15072,3318.2,3315.8,3.16482]
[1768516917859,0.15072,3318.2,3315.8,3.16743568]
[1768516918456,1.85536564,3317.9,3315.8,3.16743568]
[1768516918651,1.85536564,3317.9,3315.9,3.54544042]
[1768516921352,1.85536564,3317.4,3315.9,3.54544042]
[1768516922153,0.15076,3317.3,3315.9,3.54544042]
[1768516922452,0.15076,3317.3,3315.8,0.00261568]
[1768516922652,1.85536564,3317.2,3315.8,0.00261568]
[1768516923262,2.00612564,3317.2,3315.8,0.00261568]
[1768516923458,2.00612564,3317.2,3315.8,3.5480561]
[1768516925560,0.15077,3317.1,3315.8,3.5480561]
[1768516925960,0.15077,3317.0,3315.8,3.5480561]
[1768516927159,0.15078,3316.9,3315.8,3.5480561]
[1768516927567,0.15078,3316.9,3315.8,0.00261568]
[1768516928067,2.00615564,3316.7,3315.4,3.54544042]
[1768516928966,0.15079,3316.6,3315.4,3.54915373]
[1768516930664,0.1508,3316.5,3315.4,0.00371331]
[1768516930864,0.1508,3316.5,3315.4,3.54915373]
[1768516932662,0.1508,3316.4,3313.9,6.15091]
[1768516932862,1.85536564,3316.1,3313.9,0.15091]
[1768516933672,0.15082,3315.9,3313.9,0.1538548]
[1768516933862,0.15395587,3315.9,3313.9,0.1538548]
[1768516934263,1.85536564,3315.6,3313.9,0.0029448]
[1768516934764,2.00620564,3315.6,3314.0,3.54544042]
[1768516935068,0.15084,3315.5,3314.0,3.54544042]
[1768516935269,0.15085,3315.4,3314.0,3.54544042]
[1768516935464,0.15085,3315.3,3314.0,3.54544042]
[1768516936172,0.15085,3315.2,3314.0,3.54544042]
[1768516938971,1.85536564,3315.8,3314.0,3.54544042]
[1768516939569,0.15395587,3315.9,3314.0,3.54544042]
[1768516939965,0.15395587,3315.9,3314.0,3.54413129]
[1768516943276,1.21424063,3315.2,3314.0,3.54413129]
[1768516944568,1.21424063,3314.9,3314.0,3.54413129]
[1768516945982,1.21424063,3314.5,3313.9,0.0029448]
[1768516947381,0.15086,3315.0,3313.9,0.0029448]
[1768516948382,0.15087,3314.9,3313.9,0.0029448]
[1768516961682,3.55555041,3314.9,3313.9,0.0029448]
[1768516961983,0.15087,3314.8,3313.9,0.0029448]
[1768516965381,3.40468041,3315.3,3313.9,0.0029448]
[1768516965584,0.93700759,3315.2,3313.9,0.0029448]
[1768516965787,3.40468041,3315.3,3313.9,0.0029448]
[1768516965980,0.93696451,3315.2,3313.9,0.0029448]
[1768516966186,3.40468041,3315.3,3313.9,0.0029448]
[1768516966490,0.92918725,3315.2,3313.9,0.0029448]
[1768516966693,3.55553041,3315.3,3313.9,0.0029448]
[1768516966891,0.9291875,3315.2,3313.9,0.0029448]
[1768516967092,3.55553041,3315.3,3313.9,0.0029448]
[1768516969586,0.15085,3315.3,3313.9,3.29120562]
[1768516974107,0.15085,3315.3,3313.9,0.0029448]
[1768516974818,0.15085,3315.3,3313.9,3.4403358]
[1768516977422,3.68547787,3315.3,3313.9,0.0029448]
[1768516982026,3.68547787,3315.2,3313.9,0.0029448]
[1768516983326,0.15085,3315.2,3313.9,0.0029448]
[1768516984228,3.68547787,3315.2,3313.9,0.0029448]
[1768516988539,0.15085,3315.2,3313.9,0.0029448]
[1768516991441,3.21210143,3313.9,3312.7,5.32150286]
[1768516991647,1.21445041,3312.9,3311.7,3.437391]
[1768516991833,1.21445041,3312.5,3311.1,3.437391]
[1768516992140,0.15098,3312.4,3311.1,3.437391]
[1768516992543,0.151,3312.0,3311.1,0.00247395]
[1768516992743,0.151,3312.0,3310.6,3.437391]
[1768516993738,0.151,3312.0,3310.6,3.43974574]
[1768516995033,0.15101,3311.9,3310.6,3.43974574]
[1768516996538,0.15103,3311.5,3310.6,0.00235474]
[1768516999939,0.15103,3311.5,3310.6,3.43974574]
[1768517001245,0.00234572,3312.4,3310.6,3.43974574]
[1768517001246,0.15099,3312.2,3310.6,3.43974574]
[1768517003542,0.15099,3312.1,3310.6,3.43974574]
[1768517009141,0.00234572,3312.4,3310.8,3.5234519]
[1768517009639,2.65556063,3312.4,3310.6,3.52580664]
[1768517009840,0.00234572,3312.4,3310.6,3.52580664]
[1768517010052,0.15101,3311.7,3310.6,3.52580664]
[1768517012457,0.15101,3311.7,3310.7,3.021]
[1768517014959,0.15101,3311.7,3310.6,3.52580664]
[1768517015151,0.15101,3311.7,3310.7,3.021]
[1768517015351,1.36792107,3311.7,3310.7,3.021]
[1768517015544,1.36792107,3311.7,3310.6,3.52580664]
[1768517015545,1.21691107,3311.7,3310.6,3.52580664]
[1768517015749,0.15103,3311.3,3310.6,0.00235474]
[1768517016150,1.21691107,3311.1,3310.3,3.5234519]
[1768517016354,0.15103,3311.3,3310.3,3.5234519]
[1768517017151,0.15103,3311.3,3310.3,3.52576109]
[1768517019259,0.15103,3311.3,3310.3,6.54676109]
[1768517019661,0.15103,3311.3,3310.4,3.5234519]
[1768517022060,1.21691107,3311.7,3310.4,3.5234519]
[1768517022269,0.99817665,3311.6,3310.4,3.5234519]
[1768517022462,0.99817665,3311.5,3310.4,3.5234519]
[1768517022663,0.99817665,3311.4,3310.4,3.5234519]
[1768517022860,1.21691107,3311.7,3310.4,3.5234519]
[1768517023060,0.97625077,3311.6,3310.4,3.5234519]
[1768517023263,0.97625077,3311.5,3310.4,3.5234519]
[1768517023463,0.97625077,3311.4,3310.4,3.5234519]
[1768517023664,0.15103,3311.3,3310.4,3.5234519]
[1768517025365,0.15103,3311.3,3310.5,3.021]
[1768517026669,0.15103,3311.3,3310.4,3.5234519]
[1768517026869,0.15103,3311.3,3310.5,3.021]
[1768517027070,0.15103,3311.3,3310.4,3.5234519]
[1768517027264,0.15103,3311.3,3310.5,3.021]
[1768517028272,0.15103,3311.3,3310.5,6.5444519]
[1768517030177,0.15103,3311.3,3310.5,3.021]
[1768517030669,0.15104,3311.2,3310.3,0.00230919]
[1768517030879,0.15104,3311.2,3310.5,3.021]
[1768517031469,0.15104,3311.2,3310.4,3.021]
[1768517032979,1.21691107,3311.1,3310.3,0.00230919]
[1768517033169,0.15105,3310.8,3310.3,0.00230919]
[1768517033369,0.15106,3310.7,3310.3,0.00230919]
[1768517033577,0.15106,3310.7,3310.1,3.021]
[1768517033771,0.15106,3310.7,3309.6,3.41592738]
[1768517034373,0.15106,3310.7,3309.7,3.021]
[1768517035373,0.15106,3310.6,3309.6,3.4194536]
[1768517036170,0.15106,3310.6,3309.7,6.43692738]
[1768517036371,0.15104,3311.2,3309.8,3.41592738]
[1768517036571,0.95830875,3311.1,3309.8,3.41592738]
[1768517036771,0.15104,3311.2,3309.8,3.41592738]
[1768517036972,0.95442994,3311.1,3309.8,3.41592738]
[1768517037171,0.15104,3311.2,3310.0,3.41592738]
[1768517037471,0.95442974,3311.1,3310.0,3.41592738]
[1768517037671,0.15104,3311.2,3310.0,3.41592738]
[1768517037872,0.95443633,3311.1,3310.0,3.41592738]
[1768517038072,0.15104,3311.2,3310.0,3.41592738]
[1768517038371,0.95443633,3311.1,3310.0,3.41592738]
[1768517038577,0.15104,3311.2,3310.0,6.43792738]
[1768517038877,0.95060666,3311.1,3310.0,6.43792738]
[1768517039079,0.15104,3311.2,3310.0,6.43792738]
[1768517039471,1.10184755,3311.1,3310.1,3.41592738]
[1768517039674,0.15104,3311.1,3310.1,3.41592738]
[1768517040681,1.21691107,3311.3,3310.1,3.41592738]
[1768517040682,0.15105,3311.0,3310.1,6.43792738]
[1768517042585,0.15105,3310.9,3310.1,3.022]
[1768517042785,0.15105,3310.9,3309.7,3.41592738]
[1768517043178,0.15106,3310.8,3309.7,3.41592738]
[1768517043374,0.15106,3310.8,3309.8,3.022]
[1768517043775,1.36797107,3310.7,3309.7,3.41592738]
[1768517044075,0.15106,3310.6,3309.6,0.00352622]
[1768517044271,0.15106,3310.6,3309.7,3.022]
[1768517044581,0.15106,3310.6,3309.6,3.02552622]
[1768517044977,1.21691107,3310.4,3309.6,0.00352622]
[1768517046384,0.15108,3310.3,3309.6,0.00352622]
[1768517046580,3.48667598,3312.2,3309.7,3.41592738]
[1768517046890,0.00234572,3312.4,3310.0,3.41592738]
[1768517046891,0.15104,3311.1,3310.0,3.41592738]
[1768517047079,1.21691107,3311.6,3310.0,3.41592738]
[1768517047481,1.21691107,3311.3,3310.0,3.41592738]
[1768517047875,1.36794107,3311.3,3310.0,3.41592738]
[1768517048282,1.36794107,3311.3,3310.1,3.022]
[1768517048584,1.36793107,3311.6,3310.2,3.41592738]
[1768517049780,1.21691107,3311.5,3310.2,3.41592738]
[1768517050177,0.15102,3311.6,3310.2,3.41592738]
[1768517050485,0.15102,3311.6,3310.2,4.63283845]
[1768517050685,0.15102,3311.6,3310.3,3.41592738]
[1768517054580,0.15102,3311.6,3310.5,3.41592738]
[1768517057491,0.15102,3311.6,3310.5,6.43792738]
[1768517059684,0.15102,3311.6,3310.6,3.41592738]
[1768517059988,1.21691107,3312.0,3310.6,3.41592738]
[1768517061688,0.15102,3311.6,3310.6,3.41592738]
[1768517066095,0.15102,3311.6,3310.7,3.021]
[1768517066285,0.15102,3311.6,3310.7,6.44002266]
[1768517069699,0.15102,3311.6,3310.8,3.41902266]
[1768517069900,1.21691107,3312.0,3310.9,3.021]
[1768517070401,1.21691107,3312.0,3310.9,6.44002266]
[1768517070591,0.14866526,3311.6,3310.9,6.44002266]
[1768517071996,0.00234572,3312.4,3311.0,3.41902266]
[1768517072302,0.151,3312.0,3311.0,3.41902266]
[1768517076302,1.21661488,3311.7,3310.9,3.021]
[1768517076504,1.21661488,3311.7,3310.5,3.41902266]
[1768517076804,3.57252173,3311.9,3310.6,3.021]
[1768517077595,3.57252173,3311.9,3310.5,3.021]
[1768517077911,1.21661488,3311.8,3310.4,3.021]
[1768517078605,1.21661488,3311.8,3310.0,3.41902266]
[1768517078812,1.21661488,3311.8,3310.1,3.021]
[1768517081111,1.21661488,3311.8,3310.1,6.44002266]
[1768517081299,1.21661488,3311.8,3310.1,3.41902266]
[1768517081500,1.21661488,3311.8,3310.2,3.021]
[1768517083915,4.78913661,3311.8,3310.1,3.41902266]
[1768517084106,4.94014661,3311.8,3310.2,3.021]
[1768517086613,4.94014661,3311.8,3310.3,3.41902266]
[1768517086614,1.36762488,3311.8,3310.3,3.41902266]
[1768517088010,4.94014661,3311.8,3309.7,3.41902266]
[1768517088215,4.94014661,3311.8,3309.9,3.41902266]
[1768517088419,4.94014661,3311.8,3310.0,3.021]
[1768517088615,4.94014661,3311.8,3310.1,3.41902266]
[1768517089924,1.36762488,3311.8,3310.1,3.41902266]
[1768517093334,1.36762488,3311.8,3310.2,3.021]
[1768517093535,1.36762488,3311.8,3310.2,6.47536697]
[1768517093731,1.36762488,3311.8,3310.2,3.45436697]
[1768517093927,1.36762488,3311.8,3310.3,3.021]
[1768517096533,1.36762488,3311.8,3310.2,3.45436697]
[1768517096737,1.36762488,3311.8,3310.4,3.021]
[1768517097434,4.68113837,3311.8,3310.2,3.45436697]
[1768517097640,3.31351349,3311.7,3310.3,3.021]
[1768517098533,1.21661488,3311.4,3309.8,3.45436697]
[1768517098835,1.21661488,3311.4,3309.9,6.47536697]
[1768517100639,1.21661488,3311.4,3310.0,3.021]
[1768517100932,1.21661488,3311.4,3310.0,6.47536697]
[1768517101241,1.21661488,3311.4,3310.1,3.021]
[1768517101442,3.31351349,3311.7,3310.1,6.47536697]
[1768517103240,3.31351349,3311.7,3310.2,3.021]
[1768517104240,3.31351349,3311.7,3310.1,3.45436697]
[1768517104440,3.31351349,3311.7,3310.2,3.021]
[1768517105435,3.31351349,3311.7,3309.7,3.60546697]
[1768517105738,3.31351349,3311.7,3310.1,3.021]
[1768517107838,3.31351349,3311.7,3309.7,3.60546697]
[1768517108138,3.31351349,3311.7,3309.8,3.021]
[1768517108341,3.31351349,3311.7,3309.9,3.021]
[1768517108838,3.46453349,3311.7,3309.9,3.021]
[1768517109038,3.46453349,3311.7,3309.7,3.60546697]
[1768517109234,3.46453349,3311.7,3309.8,3.021]
[1768517109428,3.46453349,3311.7,3309.8,6.47536697]
[1768517109942,3.46453349,3311.6,3309.8,6.47536697]
[1768517111141,3.46453349,3311.6,3309.8,3.45436697]
[1768517111442,3.46453349,3311.6,3309.9,3.021]
[1768517112548,3.46453349,3311.6,3309.8,3.45436697]
[1768517112740,3.31351349,3311.4,3309.9,3.021]
[1768517112941,3.31351349,3311.4,3310.0,3.021]
[1768517114634,3.31351349,3311.4,3309.8,3.45436697]
[1768517114940,3.31351349,3311.4,3309.9,3.021]
[1768517118448,3.31351349,3311.4,3309.8,3.45436697]
[1768517118648,3.31351349,3311.4,3309.9,3.021]